fUST/lending_fUST_20240723
["ID","MTS","AMOUNT","RATE_DAILY","PERIOD"]
[332973999,1721712638524,-1126.76,0.00010959,2]
[332974001,1721712638533,-938.97,0.00010959,2]
[332974003,1721712638543,-782.48,0.00010959,2]
[332974005,1721712638552,-652.06,0.00010959,2]
[332974007,1721712638562,-543.39,0.00010959,2]
[332974008,1721712638572,-452.82,0.00010959,2]
[332974010,1721712638581,-200.0,0.00013425,2]
[332974012,1721712638590,-1216.99568473,0.00013588,2]
[332974014,1721712638600,-233.7444477,0.000136,2]
[332974016,1721712638611,-306.0,0.000136,2]
[332974018,1721712638620,-102951.052931,0.00013688,2]
[332974021,1721712638633,-22878.0117624,0.00013689,2]
[332974023,1721712638646,-150.505,0.00013693,2]
[332974025,1721712638656,-505.0,0.00013693,2]
[332974027,1721712638666,-1409.0,0.00013693,2]
[332974029,1721712638676,-2222.84018385,0.00013698,2]
[332974031,1721712638685,-2501.31,0.00013698,2]
[332974033,1721712638695,-2501.31,0.00013698,2]
[332974035,1721712638706,-503.05648173,0.00013698,2]
[332974038,1721712638716,-500.0,0.00013698,2]
[332974039,1721712638728,-500.0,0.00013698,2]
[332974041,1721712638739,-500.0,0.00013698,2]
[332974043,1721712638749,-350.6183169,0.00013698,2]
[332974045,1721712638759,-500.0,0.00013698,2]
[332974047,1721712638768,-500.0,0.00013698,2]
[332974049,1721712638778,-500.0,0.00013698,2]
[332974051,1721712638787,-500.0,0.00013698,2]
[332974053,1721712638797,-500.0,0.00013698,2]
[332974055,1721712638807,-501.95535391,0.00013698,2]
[332974057,1721712638818,-500.0,0.00013698,2]
[332974059,1721712638828,-500.0,0.00013698,2]
[332974061,1721712638839,-500.0,0.00013698,2]
[332974064,1721712638851,-500.0,0.00013698,2]
[332974066,1721712638861,-500.0,0.00013698,2]
[332974068,1721712638870,-500.0,0.00013698,2]
[332974070,1721712638883,-505.65927812,0.00013698,2]
[332974072,1721712638896,-504.17237294,0.00013698,2]
[332974074,1721712638906,-500.0,0.00013698,2]
[332974076,1721712638917,-503.93951742,0.00013698,2]
[332974078,1721712638928,-500.0,0.00013698,2]
[332974080,1721712638939,-500.96063051,0.00013698,2]
[332974082,1721712638951,-503.78612289,0.00013698,2]
[332974085,1721712638962,-503.92257116,0.00013698,2]
[332974087,1721712638972,-221.46543973,0.00013698,2]
[332974089,1721712638982,-504.07197194,0.00013698,2]
[332974091,1721712638994,-504.351301,0.00013698,2]
[332974093,1721712639006,-500.0,0.00013698,2]
[332974095,1721712639015,-500.0,0.00013698,2]
[332974097,1721712639024,-500.0,0.00013698,2]
[332974099,1721712639034,-500.0,0.00013698,2]
[332974101,1721712639043,-500.0,0.00013698,2]
[332974103,1721712639053,-531.04409947,0.00013698,2]
[332974105,1721712639062,-500.0,0.00013698,2]
[332974107,1721712639071,-503.79506167,0.00013698,2]
[332974109,1721712639081,-500.0,0.00013698,2]
[332974111,1721712639091,-500.0,0.00013698,2]
[332974113,1721712639100,-500.0,0.00013698,2]
[332974116,1721712639111,-500.0,0.00013698,2]
[332974118,1721712639120,-500.0,0.00013698,2]
[332974120,1721712639134,-511.97845603,0.00013698,2]
[332974122,1721712639143,-503.15642272,0.00013698,2]
[332974124,1721712639155,-506.87488259,0.00013698,2]
[332974126,1721712639165,-500.0,0.00013698,2]
[332974128,1721712639178,-500.0,0.00013698,2]
[332974130,1721712639187,-500.0,0.00013698,2]
[332974132,1721712639198,-508.19322191,0.00013698,2]
[332974134,1721712639209,-503.51841882,0.00013698,2]
[332974137,1721712639220,-500.0,0.00013698,2]
[332974139,1721712639231,-500.0,0.00013698,2]
[332974141,1721712639241,-503.05917554,0.00013698,2]
[332974143,1721712639251,-177.56488755,0.00013698,2]
[332974145,1721712639261,-500.0,0.00013698,2]
[332974147,1721712639270,-504.12761599,0.00013698,2]
[332974149,1721712639280,-500.0,0.00013698,2]
[332974151,1721712639289,-500.0,0.00013698,2]
[332974153,1721712639299,-503.33651097,0.00013698,2]
[332974155,1721712639308,-500.0,0.00013698,2]
[332974157,1721712639318,-500.0,0.00013698,2]
[332974159,1721712639327,-500.0,0.00013698,2]
[332974161,1721712639337,-500.0,0.00013698,2]
[332974163,1721712639347,-500.0,0.00013698,2]
[332974165,1721712639356,-500.0,0.00013698,2]
[332974167,1721712639367,-500.0,0.00013698,2]
[332974169,1721712639382,-500.0,0.00013698,2]
[332974171,1721712639391,-500.0,0.00013698,2]
[332974173,1721712639401,-500.0,0.00013698,2]
[332974175,1721712639412,-500.0,0.00013698,2]
[332974177,1721712639422,-500.0,0.00013698,2]
[332974179,1721712639431,-500.0,0.00013698,2]
[332974180,1721712639441,-607.90204981,0.00013698,2]
[332974182,1721712639450,-500.0,0.00013698,2]
[332974184,1721712639462,-500.0,0.00013698,2]
[332974185,1721712639473,-500.0,0.00013698,2]
[332974186,1721712639482,-500.0,0.00013698,2]
[332974188,1721712639491,-500.0,0.00013698,2]
[332974190,1721712639501,-500.83550455,0.00013698,2]
[332974192,1721712639510,-500.0,0.00013698,2]
[332974194,1721712639519,-500.0,0.00013698,2]
[332974196,1721712639529,-500.0,0.00013698,2]
[332974198,1721712639538,-500.0,0.00013698,2]
[332974200,1721712639548,-500.0,0.00013698,2]
[332974202,1721712639557,-500.0,0.00013698,2]
[332974204,1721712639566,-500.0,0.00013698,2]
[332974206,1721712639575,-545.57359728,0.00013698,2]
[332974208,1721712639585,-505.41519491,0.00013698,2]
[332974210,1721712639594,-500.0,0.00013698,2]
[332974212,1721712639603,-500.0,0.00013698,2]
[332974215,1721712639614,-500.0,0.00013698,2]
[332974217,1721712639626,-500.0,0.00013698,2]
[332974219,1721712639637,-500.0,0.00013698,2]
[332974221,1721712639648,-422.40906786,0.00013698,2]
[332974222,1721712639660,-339.91633675,0.00013698,2]
[332974223,1721712639669,-500.0,0.00013698,2]
[332974224,1721712639680,-500.0,0.00013698,2]
[332974225,1721712639699,-524.08,0.00013698,2]
[332974226,1721712639711,-500.0,0.00013698,2]
[332974227,1721712639722,-500.0,0.00013698,2]
[332974228,1721712639732,-500.35,0.00013698,2]
[332974229,1721712639743,-500.0,0.00013698,2]
[332974230,1721712639755,-228.20082559,0.00013698,2]
[332974231,1721712639766,-500.0,0.00013698,2]
[332974232,1721712639777,-500.0,0.00013698,2]
[332974233,1721712639786,-500.0,0.00013698,2]
[332974234,1721712639796,-516.65,0.00013698,2]
[332974235,1721712639806,-500.0,0.00013698,2]
[332974236,1721712639816,-506.16372237,0.00013698,2]
[332974237,1721712639826,-500.0,0.00013698,2]
[332974238,1721712639836,-191.57999646,0.00013698,2]
[332974239,1721712639845,-333.85852225,0.00013698,2]
[332974240,1721712639855,-500.0,0.00013698,2]
[332974241,1721712639865,-500.0,0.00013698,2]
[332974242,1721712639876,-481.40800672,0.00013698,2]
[332974243,1721712639887,-500.0,0.00013698,2]
[332974244,1721712639897,-500.0,0.00013698,2]
[332974245,1721712639907,-500.0,0.00013698,2]
[332974246,1721712639917,-509.85362598,0.00013698,2]
[332974247,1721712639927,-500.0,0.00013698,2]
[332974248,1721712639937,-500.0,0.00013698,2]
[332974249,1721712639948,-500.0,0.00013698,2]
[332974250,1721712639959,-505.82585355,0.00013698,2]
[332974251,1721712639969,-565.56485377,0.00013698,2]
[332974252,1721712639978,-500.0,0.00013698,2]
[332974253,1721712639988,-501.99856816,0.00013698,2]
[332974254,1721712639998,-516.26547321,0.00013698,2]
[332974255,1721712640007,-500.48716057,0.00013698,2]
[332974256,1721712640018,-500.82066488,0.00013698,2]
[332974257,1721712640029,-214.05261226,0.00013698,2]
[332974258,1721712640041,-510.35524229,0.00013698,2]
[332974259,1721712640051,-1689.41,0.00013698,2]
[332974262,1721712640061,-2133.32,0.00013698,2]
[332974263,1721712640071,-500.0,0.00013698,2]
[332974264,1721712640081,-500.0,0.00013698,2]
[332974265,1721712640091,-2506.99,0.00013698,2]
[332974266,1721712640101,-1979.57,0.00013698,2]
[332974267,1721712640112,-500.0,0.00013698,2]
[332974268,1721712640127,-2460.85,0.00013698,2]
[332974269,1721712640138,-3483.86,0.00013698,2]
[332974272,1721712640149,-1369.62,0.00013698,2]
[332974274,1721712640159,-500.0,0.00013698,2]
[332974276,1721712640169,-500.0,0.00013698,2]
[332974278,1721712640179,-500.0,0.00013698,2]
[332974281,1721712640189,-541.1,0.00013698,2]
[332974284,1721712640199,-500.0,0.00013698,2]
[332974287,1721712640209,-570.38,0.00013698,2]
[332974288,1721712640219,-500.0,0.00013698,2]
[332974290,1721712640228,-500.0,0.00013698,2]
[332974292,1721712640239,-352.71549179,0.00013698,2]
[332974294,1721712640250,-500.0,0.00013698,2]
[332974296,1721712640259,-500.0,0.00013698,2]
[332974298,1721712640269,-367.35938169,0.00013698,2]
[332974299,1721712640279,-500.0,0.00013698,2]
[332974300,1721712640289,-500.0,0.00013698,2]
[332974301,1721712640300,-500.0,0.00013698,2]
[332974303,1721712640310,-500.0,0.00013698,2]
[332974305,1721712640321,-500.0,0.00013698,2]
[332974307,1721712640333,-500.0,0.00013698,2]
[332974309,1721712640344,-500.0,0.00013698,2]
[332974311,1721712640355,-500.0,0.00013698,2]
[332974313,1721712640365,-524.53,0.00013698,2]
[332974315,1721712640378,-500.0,0.00013698,2]
[332974317,1721712640389,-500.0,0.00013698,2]
[332974319,1721712640398,-500.0,0.00013698,2]
[332974321,1721712640408,-500.0,0.00013698,2]
[332974323,1721712640422,-500.0,0.00013698,2]
[332974325,1721712640432,-500.0,0.00013698,2]
[332974327,1721712640443,-503.54918777,0.00013698,2]
[332974330,1721712640456,-500.0,0.00013698,2]
[332974332,1721712640466,-500.0,0.00013698,2]
[332974334,1721712640475,-500.0,0.00013698,2]
[332974336,1721712640485,-504.399664,0.00013698,2]
[332974338,1721712640495,-513.10565774,0.00013698,2]
[332974340,1721712640505,-431.34980111,0.00013698,2]
[332974342,1721712640515,-501.62150582,0.00013698,2]
[332974344,1721712640528,-500.0,0.00013698,2]
[332974347,1721712640539,-500.0,0.00013698,2]
[332974349,1721712640550,-500.0,0.00013698,2]
[332974351,1721712640561,-501.30950612,0.00013698,2]
[332974353,1721712640571,-500.0,0.00013698,2]
[332974355,1721712640582,-611.01,0.00013698,2]
[332974357,1721712640592,-508.26701316,0.00013698,2]
[332974359,1721712640602,-500.0,0.00013698,2]
[332974361,1721712640612,-500.0,0.00013698,2]
[332974363,1721712640622,-500.0,0.00013698,2]
[332974365,1721712640635,-500.0,0.00013698,2]
[332974367,1721712640645,-500.0,0.00013698,2]
[332974368,1721712640654,-315.68744378,0.00013698,2]
[332974369,1721712640664,-500.0,0.00013698,2]
[332974370,1721712640674,-500.0,0.00013698,2]
[332974371,1721712640684,-503.50562691,0.00013698,2]
[332974372,1721712640693,-500.0,0.00013698,2]
[332974373,1721712640937,-500.0,0.00013698,2]
[332974374,1721712640951,-500.0,0.00013698,2]
[332974376,1721712640961,-500.0,0.00013698,2]
[332974378,1721712640971,-500.0,0.00013698,2]
[332974381,1721712640982,-500.0,0.00013698,2]
[332974383,1721712640991,-500.0,0.00013698,2]
[332974385,1721712641002,-500.0,0.00013698,2]
[332974387,1721712641013,-502.53613502,0.00013698,2]
[332974389,1721712641023,-500.0,0.00013698,2]
[332974391,1721712641034,-500.0,0.00013698,2]
[332974393,1721712641044,-496.35492387,0.00013698,2]
[332974395,1721712641053,-500.0,0.00013698,2]
[332974397,1721712641063,-500.0,0.00013698,2]
[332974399,1721712641073,-518.55,0.00013698,2]
[332974401,1721712641082,-500.0,0.00013698,2]
[332974403,1721712641092,-640.12,0.00013698,2]
[332974405,1721712641101,-500.0,0.00013698,2]
[332974407,1721712641111,-500.0,0.00013698,2]
[332974409,1721712641122,-500.0,0.00013698,2]
[332974411,1721712641134,-500.0,0.00013698,2]
[332974414,1721712641144,-500.0,0.00013698,2]
[332974415,1721712641153,-500.0,0.00013698,2]
[332974417,1721712641163,-503.7493371,0.00013698,2]
[332974419,1721712641173,-500.0,0.00013698,2]
[332974422,1721712641183,-500.0,0.00013698,2]
[332974424,1721712641193,-500.0,0.00013698,2]
[332974426,1721712641202,-208.12842855,0.00013698,2]
[332974428,1721712641212,-511.97588946,0.00013698,2]
[332974429,1721712641222,-500.0,0.00013698,2]
[332974431,1721712641231,-500.0,0.00013698,2]
[332974433,1721712641242,-522.71,0.00013698,2]
[332974436,1721712641252,-502.30665201,0.00013698,2]
[332974438,1721712641262,-500.0,0.00013698,2]
[332974439,1721712641271,-500.0,0.00013698,2]
[332974441,1721712641281,-500.0,0.00013698,2]
[332974443,1721712641290,-500.0,0.00013698,2]
[332974446,1721712641302,-500.0,0.00013698,2]
[332974448,1721712641313,-500.0,0.00013698,2]
[332974450,1721712641324,-500.0,0.00013698,2]
[332974452,1721712641335,-449.49386372,0.00013698,2]
[332974454,1721712641345,-500.0,0.00013698,2]
[332974456,1721712641354,-230.36302586,0.00013698,2]
[332974460,1721712641388,-269.63697414,0.00013698,2]
[332974462,1721712641399,-500.0,0.00013698,2]
[332974464,1721712641409,-649.33,0.00013698,2]
[332974466,1721712641420,-500.0,0.00013698,2]
[332974468,1721712641431,-500.0,0.00013698,2]
[332974470,1721712641441,-500.0,0.00013698,2]
[332974472,1721712641450,-648.19,0.00013698,2]
[332974474,1721712641462,-500.0,0.00013698,2]
[332974476,1721712641472,-593.73,0.00013698,2]
[332974478,1721712641483,-500.0,0.00013698,2]
[332974480,1721712641492,-500.0,0.00013698,2]
[332974482,1721712641502,-500.0,0.00013698,2]
[332974485,1721712641511,-500.0,0.00013698,2]
[332974487,1721712641521,-500.0,0.00013698,2]
[332974489,1721712641531,-500.0,0.00013698,2]
[332974491,1721712641542,-454.05057282,0.00013698,2]
[332974493,1721712641552,-500.0,0.00013698,2]
[332974495,1721712641562,-500.0,0.00013698,2]
[332974497,1721712641572,-500.0,0.00013698,2]
[332974499,1721712641582,-500.0,0.00013698,2]
[332974501,1721712641592,-506.71651489,0.00013698,2]
[332974503,1721712641602,-500.0,0.00013698,2]
[332974505,1721712641611,-135.37908314,0.00013698,2]
[332974541,1721712641921,-320.5458083,0.00010959,2]
[332974543,1721712641932,-56.8041917,0.00010959,2]
[332974545,1721712641942,-669.2427092,0.00013598,2]
[332974547,1721712641951,-319.8930991,0.00013698,2]
[332974549,1721712641962,-44.72781776,0.00013698,2]
[332974552,1721712641973,-500.0,0.00013698,2]
[332974553,1721712641982,-116.63238227,0.00013698,2]
[332974554,1721712641993,-383.36761773,0.00013698,2]
[332974556,1721712642002,-410.34,0.00013698,2]
[332974558,1721712642012,-335.31493924,0.00013698,2]
[332974818,1721712646710,-164.68506076,0.00013698,2]
[332974819,1721712646719,-177.51493924,0.00013698,2]
[332974820,1721712646731,-322.48506076,0.00013698,2]
[332974821,1721712646741,-500.0,0.00013698,2]
[332974822,1721712646751,-500.0,0.00013698,2]
[332974823,1721712646760,-500.0,0.00013698,2]
[332974824,1721712646770,-500.0,0.00013698,2]
[332974825,1721712646779,-500.0,0.00013698,2]
[332974826,1721712646788,-489.06137995,0.00013698,2]
[332974827,1721712646798,-500.0,0.00013698,2]
[332974828,1721712646808,-500.0,0.00013698,2]
[332974830,1721712646817,-500.0,0.00013698,2]
[332974832,1721712646826,-500.0,0.00013698,2]
[332974835,1721712646837,-500.0,0.00013698,2]
[332974838,1721712646859,-500.0,0.00013698,2]
[332974839,1721712646869,-500.0,0.00013698,2]
[332974842,1721712646881,-509.41848931,0.00013698,2]
[332974844,1721712646891,-500.0,0.00013698,2]
[332974846,1721712646901,-500.0,0.00013698,2]
[332974848,1721712646911,-500.0,0.00013698,2]
[332974850,1721712646920,-500.0,0.00013698,2]
[332974852,1721712646930,-500.0,0.00013698,2]
[332974854,1721712646939,-500.0,0.00013698,2]
[332974856,1721712646949,-500.0,0.00013698,2]
[332974858,1721712646959,-500.0,0.00013698,2]
[332974860,1721712646969,-500.0,0.00013698,2]
[332974862,1721712646979,-500.0,0.00013698,2]
[332974864,1721712646988,-193.51712386,0.00013698,2]
[332974866,1721712646998,-500.0,0.00013698,2]
[332974868,1721712647008,-500.0,0.00013698,2]
[332974870,1721712647018,-502.24128874,0.00013698,2]
[332974872,1721712647028,-571.4,0.00013698,2]
[332974874,1721712647037,-500.0,0.00013698,2]
[332974876,1721712647047,-500.0,0.00013698,2]
[332974878,1721712647057,-500.0,0.00013698,2]
[332974880,1721712647066,-500.0,0.00013698,2]
[332974882,1721712647076,-500.0,0.00013698,2]
[332974884,1721712647086,-500.0,0.00013698,2]
[332974886,1721712647097,-616.59,0.00013698,2]
[332974888,1721712647107,-500.0,0.00013698,2]
[332974890,1721712647117,-500.0,0.00013698,2]
[332974892,1721712647129,-500.0,0.00013698,2]
[332974894,1721712647139,-604.59,0.00013698,2]
[332974896,1721712647150,-500.0,0.00013698,2]
[332974898,1721712647160,-500.0,0.00013698,2]
[332974900,1721712647170,-500.0,0.00013698,2]
[332974902,1721712647180,-186.58567742,0.00013698,2]
[332974904,1721712647190,-500.0,0.00013698,2]
[332974906,1721712647199,-505.81204694,0.00013698,2]
[332974908,1721712647209,-504.29453083,0.00013698,2]
[332974910,1721712647219,-500.0,0.00013698,2]
[332974912,1721712647228,-500.0,0.00013698,2]
[332974914,1721712647238,-500.0,0.00013698,2]
[332974916,1721712647248,-500.0,0.00013698,2]
[332974918,1721712647258,-500.0,0.00013698,2]
[332974920,1721712647268,-500.0,0.00013698,2]
[332974922,1721712647278,-500.0,0.00013698,2]
[332974924,1721712647287,-557.84985499,0.00013698,2]
[332974926,1721712647297,-500.0,0.00013698,2]
[332974928,1721712647307,-500.0,0.00013698,2]
[332974930,1721712647316,-500.0,0.00013698,2]
[332974932,1721712647326,-500.59337066,0.00013698,2]
[332974934,1721712647336,-500.0,0.00013698,2]
[332974936,1721712647346,-500.0,0.00013698,2]
[332974938,1721712647356,-548.18,0.00013698,2]
[332974940,1721712647366,-500.0,0.00013698,2]
[332974942,1721712647379,-495.52383011,0.00013698,2]
[332975063,1721713533119,-150.0,9.899e-05,2]
[332975064,1721713533141,-201.273204,9.999e-05,2]
[332975065,1721713533162,-191.94758201,9.999e-05,2]
[332975066,1721713533183,-151.65,0.00010959,2]
[332975067,1721713533203,-124.67312999,0.00010959,2]
[332975070,1721713650131,-164.50687001,0.00010959,2]
[332975071,1721713650154,-240.99,0.00010959,2]
[332975072,1721713650175,-200.82,0.00010959,2]
[332975073,1721713650197,-167.35,0.00010959,2]
[332975074,1721713650218,-836.79,0.00010959,2]
[332975075,1721713650240,-557.3467796,0.00010959,2]
[332975076,1721713650262,-300.0,0.00012664,2]
[332975077,1721713650284,-2681.72107082,0.00012665,2]
[332975081,1721713833413,-237.0,0.00012664,2]
[332975082,1721713833423,-218.4639533,0.00012665,2]
[332975083,1721713833434,-617.12417449,0.00012665,2]
[332975084,1721713833446,-1395.08827527,0.00012665,2]
[332975085,1721713833459,-2410.31023277,0.00012665,2]
[332975221,1721713840855,-11849.2240765,0.00012665,2]
[332975223,1721713840865,-1159.64366148,0.00012665,2]
[332975225,1721713840875,-200.0,0.00013425,2]
[332975227,1721713840886,-620.00000081,0.00013492,2]
[332975229,1721713840895,-1252.203428,0.00013588,2]
[332975231,1721713840905,-30885.3158791,0.00013688,2]
[332975233,1721713840914,-5147.55264652,0.00013689,2]
[332975235,1721713840924,-10295.105293,0.00013689,2]
[332975237,1721713840934,-150.0,0.00013693,2]
[332975239,1721713840944,-505.0,0.00013693,2]
[332975241,1721713840955,-1409.0,0.00013693,2]
[332975243,1721713840971,-4.47616989,0.00013698,2]
[332975245,1721713840979,-500.0,0.00013698,2]
[332975247,1721713840988,-500.0,0.00013698,2]
[332975249,1721713840998,-500.0,0.00013698,2]
[332975251,1721713841009,-500.0,0.00013698,2]
[332975253,1721713841018,-500.0,0.00013698,2]
[332975255,1721713841028,-500.0,0.00013698,2]
[332975257,1721713841041,-123.51824478,0.00013698,2]
[332975374,1721713843718,-376.48175522,0.00013698,2]
[332975376,1721713843728,-500.0,0.00013698,2]
[332975378,1721713843739,-1807.51,0.00013698,2]
[332975380,1721713843749,-560.26624464,0.00013698,2]
[332975382,1721713843761,-1247.24375536,0.00013698,2]
[332975384,1721713843770,-1419.95624464,0.00013698,2]
[332975463,1721713847627,-387.55375536,0.00013698,2]
[332975464,1721713847638,-1807.51,0.00013698,2]
[332975465,1721713847650,-1807.51,0.00013698,2]
[332975466,1721713847660,-1807.51,0.00013698,2]
[332975467,1721713847669,-1807.51,0.00013698,2]
[332975468,1721713847678,-1807.51,0.00013698,2]
[332975469,1721713847687,-181.26719806,0.00013698,2]
[332975472,1721713970985,-630.0,0.00025,60]
[332975482,1721714030349,-630.0,0.000225,30]
[332975486,1721714201262,150.0,0.00024,60]
[332975487,1721714218329,529.0,0.00025,120]
[332975489,1721714524444,160.0,0.0001799,18]
[332975490,1721714692249,5886.0,0.00025,120]
[332975492,1721714826126,-273.37336231,9.898e-05,2]
[332975493,1721714851110,-112.59465779,9.898e-05,2]
[332975494,1721714851131,-289.21147487,9.898e-05,2]
[332975495,1721714854109,-232.85,9.898e-05,2]
[332975496,1721714961119,-250.0,9.007e-05,2]
[332975519,1721715032857,-194.04,9.798e-05,2]
[332975521,1721715032867,-300.0,9.897e-05,2]
[332975523,1721715032877,-300.0,9.897e-05,2]
[332975525,1721715032887,-51.31951039,9.898e-05,2]
[332975527,1721715032899,-9.36241074,9.898e-05,2]
[332975529,1721715032909,-156.01258813,9.999e-05,2]
[332975531,1721715032918,-197.61308168,9.999e-05,2]
[332975533,1721715032928,-211.00639127,9.999e-05,2]
[332975534,1721715032938,-534.44974909,9.999e-05,2]
[332975537,1721715032949,-343.0251587,9.999e-05,2]
[332975538,1721715032960,-155.93015526,9.999e-05,2]
[332975540,1721715032970,-263.89107345,9.999e-05,2]
[332975542,1721715032979,-783.26953764,9.999e-05,2]
[332975544,1721715032989,-157.24600443,9.999e-05,2]
[332975546,1721715032998,-240.51585871,9.999e-05,2]
[332975548,1721715033007,-392.37099697,9.999e-05,2]
[332975550,1721715033018,-202.40142995,9.999e-05,2]
[332975552,1721715033028,-286.99820482,9.999e-05,2]
[332975562,1721715033252,-154.84418616,9.999e-05,2]
[332975563,1721715033263,-880.21333407,9.999e-05,2]
[332975564,1721715033272,-542.52748339,9.999e-05,2]
[332975565,1721715033283,-333.42156538,0.0001,2]
[332975566,1721715033292,-285.44810989,0.0001,2]
[332975567,1721715033301,-1085.75589119,0.0001013,2]
[332975568,1721715033314,-305.84891193,0.0001013,2]
[332975628,1721715038025,-921.58466037,0.0001013,2]
[332975630,1721715038039,-22576.81053651,0.0001013,2]
[332975633,1721715038051,-420.0,0.00010887,2]
[332975635,1721715038061,-420.0,0.00010887,2]
[332975637,1721715038072,-334.9,0.00010959,2]
[332975639,1721715038083,-250.0,0.00011022,2]
[332975641,1721715038093,-250.0,0.00011052,2]
[332975643,1721715038102,-250.0,0.00011082,2]
[332975645,1721715038112,-250.0,0.00011112,2]
[332975647,1721715038125,-250.0,0.00011143,2]
[332975649,1721715038134,-250.0,0.00011173,2]
[332975651,1721715038144,-250.0,0.00011203,2]
[332975653,1721715038153,-250.0,0.00011233,2]
[332975655,1721715038163,-250.0,0.00011264,2]
[332975657,1721715038174,-250.0,0.00011294,2]
[332975659,1721715038186,-250.0,0.00011324,2]
[332975661,1721715038197,-250.0,0.00011354,2]
[332975664,1721715038210,-250.0,0.00011384,2]
[332975666,1721715038222,-250.0,0.00011415,2]
[332975668,1721715038234,-250.0,0.00011445,2]
[332975670,1721715038244,-250.0,0.00011475,2]
[332975673,1721715038258,-250.0,0.00011505,2]
[332975675,1721715038268,-250.0,0.00011536,2]
[332975677,1721715038278,-250.0,0.00011566,2]
[332975679,1721715038287,-250.0,0.00011596,2]
[332975681,1721715038297,-159.0,0.00011975,2]
[332975683,1721715038307,-587.0,0.00011975,2]
[332975685,1721715038316,-153.0,0.00012356,2]
[332975687,1721715038326,-154.058812,0.00012778,2]
[332975689,1721715038339,-306.0,0.00012841,2]
[332975691,1721715038350,-153.0,0.00012878,2]
[332975693,1721715038361,-293.8749366,0.00012878,2]
[332975695,1721715038372,-153.0,0.00012878,2]
[332975697,1721715038382,-206.6425332,0.00012878,2]
[332975699,1721715038393,-153.0,0.00012878,2]
[332975702,1721715038405,-1369.29203447,0.000129,2]
[332975704,1721715038415,-1369.2920344,0.000129,2]
[332975706,1721715038426,-293.8749366,0.00012978,2]
[332975708,1721715038436,-153.0,0.00012978,2]
[332975710,1721715038447,-153.0,0.00012978,2]
[332975712,1721715038458,-293.8749366,0.00012978,2]
[332975714,1721715038468,-153.0,0.00012978,2]
[332975716,1721715038478,-306.0,0.00012978,2]
[332975718,1721715038489,-293.8749366,0.00012978,2]
[332975720,1721715038501,-208.7734866,0.00012978,2]
[332975722,1721715038511,-225.336947,0.00012978,2]
[332975724,1721715038522,-153.0,0.00012978,2]
[332975726,1721715038532,-153.0,0.00012978,2]
[332975729,1721715038542,-293.8749366,0.00012978,2]
[332975731,1721715038552,-206.6425332,0.00012978,2]
[332975733,1721715038564,-153.0,0.00012978,2]
[332975735,1721715038574,-153.0,0.00012978,2]
[332975737,1721715038586,-153.0,0.00012978,2]
[332975739,1721715038596,-153.0,0.00012978,2]
[332975741,1721715038608,-153.0,0.00012978,2]
[332975743,1721715038620,-153.0,0.00013041,2]
[332975746,1721715038631,-153.0,0.00013078,2]
[332975748,1721715038642,-153.0,0.00013078,2]
[332975750,1721715038652,-153.0,0.00013078,2]
[332975752,1721715038661,-293.8749366,0.00013078,2]
[332975754,1721715038671,-306.0,0.00013078,2]
[332975756,1721715038682,-153.0,0.00013078,2]